[Event "FIDE Open World Rapid 2024"]
[Site "New York"]
[Date "2024.12.27"]
[Round "9.1"]
[White "Erigaisi Arjun"]
[Black "Duda, Jan-Krzysztof"]
[Result "1/2-1/2"]
[ECO "E25"]
[WhiteElo "2801"]
[BlackElo "2740"]
[Annotator "TA"]
[PlyCount "134"]
[EventDate "2024.12.14"]
[EventType "swiss"]
[EventCountry "USA"]
[SourceTitle "playchess.com"]
[Source "ChessBase"]
[SourceQuality "1"]
[TimeControl "900+10"]

{[%evp 57,134,-45,-37,-49,-47,-47,-23,-26,-28,-30,-19,-77,-16,-55,-22,-39,-39,-42,-47,-56,-53,-46,-50,-90,-90,-77,-71,-66,-72,-75,-70,-73,-85,-98,-69,-91,0,-85,-8,-8,-8,-12,0,-7,-7,-66,0,0,0,-71,-66,-40,0,0,0,0,0,0,0,0,0,0,0,0,0,0,0,0,0,0,0,0,0,0,0,0,0,0,0]} 1. d4 {[%emt 0:00:01]} Nf6 {[%emt 0:00:02]} 2. c4 {[%emt 0:00:02]} e6 {[%emt 0:00:02]} 3. Nc3 {[%emt 0:00:02]} Bb4 {[%emt 0:00:06]} 4. f3 {[%emt 0:00:02]} d5 {[%emt 0:00:19]} 5. a3 {[%emt 0:00:03]} Bxc3+ {[%emt 0:00:05]} 6. bxc3 {[%emt 0:00:02]} c5 {[%emt 0:00:04]} 7. cxd5 {[%emt 0:00:07]} Nxd5 {[%emt 0:00:02]} 8. dxc5 {[%emt 0:00:06]} Qa5 {[%emt 0:00:06]} 9. e4 {[%emt 0:00:04]} Ne7 {[%emt 0:00:07]} 10. Be3 {[%emt 0:00:58]} O-O {[%emt 0:00:11]} 11. Qb3 {[%emt 0:00:05]} Qc7 {[%emt 0:00:47]} 12. Bb5 {[%emt 0:00:06]} e5 {[%emt 0:00:29]} 13. Ne2 {[%emt 0:00:33]} Be6 {[%emt 0:00:04]} 14. Qb4 {[%emt 0:02:43]} Nec6 {[%emt 0:00:53]} 15. Qa4 {[%emt 0:02:45]} Na5 {[%emt 0:00:49]} 16. Rb1 {[%emt 0:00:20]} a6 {[%emt 0:01:42]} 17. Bd3 {[%emt 0:00:02]} Nd7 {[%emt 0:00:03]} 18. Qb4 {[%emt 0:00:58]} Rfc8 {[%emt 0:00:11]} 19. Kf2 {[%emt 0:00:37]} Nxc5 {[%emt 0:00:17]} 20. Bc2 {[%emt 0:00:16]} b5 {[%emt 0:01:31]} 21. Bxc5 {[%emt 0:00:05]} Qxc5+ {[%emt 0:00:03]} 22. Qxc5 {[%emt 0:00:02]} Rxc5 {[%emt 0:00:02]} 23. a4 {[%emt 0:00:01]} Nc4 {[%emt 0:00:26]} 24. Ra1 {[%emt 0:01:24]} Kf8 {[%emt 0:00:57]} 25. Rhb1 {[%emt 0:00:18]} bxa4 {[%emt 0:00:23]} 26. Bxa4 {[%emt 0:00:10]} a5 {[%emt 0:01:02]} 27. Rb7 {[%emt 0:00:39]} Bc8 {[%emt 0:01:08]} 28. Rbb1 {[%emt 0:00:52]} Ke7 {[%emt 0:00:15]} 29. Nc1 {[%emt 0:00:24]} Rc7 {[%emt 0:00:13]} 30. Nd3 {[%emt 0:01:23]} f6 {[%emt 0:00:56]} 31. Bd1 {[%emt 0:00:43]} Nd6 {[%emt 0:00:45]} 32. Ra3 {[%emt 0:00:40]} Be6 {[%emt 0:02:24]} 33. Be2 {[%emt 0:00:20]} Nc4 {[%emt 0:00:53]} 34. Ra4 {[%emt 0:00:17]} (34. Ra2 $1 $11) 34... Raa7 {[%emt 0:00:36]} (34... Nd2 $17 35. Rb5 Nb3) 35. Ke1 {[%emt 0:00:41]} Kd6 {[%emt 0:00:46]} 36. Rba1 {[%emt 0:00:57]} Rab7 {[%emt 0:00:09]} 37. g3 {[%emt 0:01:29]} Rb3 {[%emt 0:00:29]} 38. Rc1 {[%emt 0:00:08]} Ra3 {[%emt 0:00:34]} 39. Rxa3 {[%emt 0:00:19]} Nxa3 {[%emt 0:00:02]} 40. Kd2 {[%emt 0:00:02]} Nc4+ {[%emt 0:01:29]} 41. Kc2 {[%emt 0:00:01]} Rb7 {[%emt 0:00:17]} 42. Ra1 {[%emt 0:00:03]} g5 {[%emt 0:00:10]} 43. f4 {[%emt 0:00:59]} Bf7 {[%emt 0:00:14]} 44. fxe5+ {[%emt 0:00:26]} fxe5 {[%emt 0:00:02]} 45. Ra4 {[%emt 0:00:04]} Ra7 {[%emt 0:00:16]} 46. Ra1 {[%emt 0:00:10]} Rb7 {[%emt 0:00:14]} 47. Ra4 $1 {[%emt 0:00:02]} Rb8 {[%emt 0:00:02]} (47... g4 $1 $17 48. Nc1 Rb2+ 49. Kd1 Nd2) 48. Nc1 $1 $11 {[%emt 0:00:24]} Rb2+ {[%emt 0:00:16]} 49. Kd1 {[%emt 0:00:01]} Ne3+ {[%emt 0:00:12]} 50. Ke1 {[%emt 0:00:01]} Rc2 {[%emt 0:00:11]} 51. Bd3 {[%emt 0:00:31]} ({White should play} 51. Rxa5 $1 $11 Rxc1+ 52. Kd2) 51... Ng2+ {[%emt 0:00:10]} (51... Rxc3 52. Kd2 Rc5 53. Kxe3 $11) (51... Rxh2 $15 52. Rxa5 Nc2+ 53. Bxc2 Rxc2) 52. Kd1 $11 {[%emt 0:00:01]} Ne3+ {[%emt 0:00:11]} ({Black should play} 52... Rb2 $11) 53. Ke1 $17 {[%emt 0:00:01]} Rxh2 {[%emt 0:00:11]} ({Of course not} 53... Rxc1+ 54. Kd2 Rh1 55. Kxe3 $11) 54. Rxa5 {[%emt 0:00:03]} Rh1+ {[%emt 0:00:09]} 55. Kd2 {[%emt 0:00:19]} Nc4+ {[%emt 0:00:04]} 56. Bxc4 {[%emt 0:00:02]} Bxc4 {[%emt 0:00:02]} 57. Nd3 {[%emt 0:00:06]} Rh2+ {[%emt 0:00:21]} 58. Ke3 {[%emt 0:00:02]} Bxd3 {[%emt 0:00:09]} 59. Kxd3 {[%emt 0:00:07]} Rh3 {[%emt 0:00:10]} 60. Kc4 {[%emt 0:00:17]} Rxg3 {[%emt 0:00:11]} 61. Ra6+ {[%emt 0:00:01]} Ke7 {[%emt 0:00:01]} 62. Kd5 {[%emt 0:00:22]} Rxc3 {[%emt 0:00:20]} 63. Kxe5 {[%emt 0:00:03]} Rc5+ {[%emt 0:00:12]} 64. Kd4 {[%emt 0:00:01]} Rc7 {[%emt 0:00:03]} 65. Ke5 {[%emt 0:00:02]} Rc5+ {[%emt 0:00:17]} 66. Kd4 {[%emt 0:00:01]} Rc7 {[%emt 0:00:01]} 67. Ke5 {[%emt 0:00:01]} Rc5+ {[%emt 0:00:18]} 1/2-1/2

[Event "FIDE Open World Rapid 2024"]
[Site "New York"]
[Date "2024.12.28"]
[Round "9.1"]
[White "Khanin, Semen"]
[Black "Barbosa, Oliver"]
[Result "1-0"]
[ECO "D10"]
[WhiteElo "2568"]
[BlackElo "2451"]
[Annotator "ChessBase"]
[PlyCount "67"]
[EventDate "2024.12.14"]
[EventType "swiss"]
[EventCountry "USA"]
[SourceTitle "playchess.com"]
[Source "ChessBase"]
[SourceQuality "1"]
[TimeControl "900+10"]

1. d4 {[%emt 0:00:20]} d5 {[%emt 0:00:03]} 2. c4 {[%emt 0:00:02]} c6 {[%emt 0:00:02]} 3. cxd5 {[%emt 0:00:02]} cxd5 {[%emt 0:00:03]} 4. Bf4 {[%emt 0:00:02]} Nc6 {[%emt 0:00:08]} 5. e3 {[%emt 0:00:01]} Nf6 {[%emt 0:00:05]} 6. Bd3 {[%emt 0:00:02]} Bg4 {[%emt 0:00:12]} 7. f3 {[%emt 0:00:02]} Bd7 {[%emt 0:00:19]} 8. Nc3 {[%emt 0:00:02]} g6 {[%emt 0:00:09]} 9. Nge2 {[%emt 0:01:17]} Bg7 {[%emt 0:00:03]} 10. Qb3 {[%emt 0:01:38]} Na5 {[%emt 0:00:52]} 11. Qb4 {[%emt 0:00:04]} O-O {[%emt 0:00:41]} 12. O-O {[%emt 0:00:10]} Re8 {[%emt 0:02:32]} 13. Rac1 {[%emt 0:04:28]} Rc8 {[%emt 0:02:55]} 14. Na4 {[%emt 0:02:19]} Nc4 {[%emt 0:03:47]} 15. Nc5 {[%emt 0:01:57]} a5 {[%emt 0:00:06]} 16. Qxb7 {[%emt 0:00:52]} Bc6 {[%emt 0:00:27]} 17. Qa6 {[%emt 0:00:02]} Nxb2 {[%emt 0:00:18]} 18. Bb5 {[%emt 0:00:43]} Bxb5 {[%emt 0:00:32]} 19. Qxb5 {[%emt 0:00:03]} Nc4 {[%emt 0:00:03]} 20. e4 {[%emt 0:00:41]} Nh5 {[%emt 0:02:02]} 21. Bg5 {[%emt 0:02:13]} Rb8 {[%emt 0:00:40]} 22. Nb7 {[%emt 0:00:41]} Qc7 {[%emt 0:00:51]} 23. Qxd5 {[%emt 0:00:07]} Rec8 {[%emt 0:00:15]} 24. Nc5 {[%emt 0:00:27]} Rb4 {[%emt 0:01:13]} 25. Na6 {[%emt 0:00:07]} Qb6 {[%emt 0:00:33]} 26. Nxb4 {[%emt 0:00:03]} Qxb4 {[%emt 0:00:06]} 27. Qd7 {[%emt 0:00:36]} Rb8 {[%emt 0:00:28]} 28. Bxe7 {[%emt 0:00:02]} Qd2 {[%emt 0:00:01]} 29. Rxc4 {[%emt 0:00:04]} Qe3+ {[%emt 0:00:02]} 30. Kh1 {[%emt 0:00:33]} Qxe2 {[%emt 0:00:01]} 31. Rc8+ {[%emt 0:00:04]} Bf8 {[%emt 0:00:01]} 32. Rg1 {[%emt 0:00:19]} Qb2 {[%emt 0:00:30]} 33. Bxf8 {[%emt 0:00:04]} Qb7 {[%emt 0:00:28]} 34. Qxb7 {[%emt 0:00:04]} 1-0

[Event "FIDE Open World Rapid 2024"]
[Site "New York"]
[Date "2024.12.27"]
[Round "9.2"]
[White "Grischuk, Alexander"]
[Black "Abdusattorov, Nodirbek"]
[Result "1/2-1/2"]
[ECO "B12"]
[WhiteElo "2689"]
[BlackElo "2777"]
[Annotator "TA"]
[PlyCount "104"]
[EventDate "2024.12.14"]
[EventType "swiss"]
[EventCountry "USA"]
[SourceTitle "playchess.com"]
[Source "ChessBase"]
[SourceQuality "1"]
[TimeControl "900+10"]

{[%evp 18,104,0,0,10,14,16,6,27,16,37,35,35,12,27,27,38,6,117,117,117,117,108,110,170,170,208,205,214,208,197,160,176,120,117,115,105,105,101,111,98,64,103,100,100,88,100,35,66,98,98,0,45,0,95,97,100,87,97,103,108,46,109,46,203,206,199,184,198,200,210,121,191,0,201,191,195,168,212,211,200,159,421,417,396,0,280,0,329]} 1. e4 {[%emt 0:01:48]} c6 {[%emt 0:00:10]} 2. d4 {[%emt 0:00:03]} d5 {[%emt 0:00:00]} 3. e5 {[%emt 0:00:05]} Bf5 {[%emt 0:00:04]} 4. h4 {[%emt 0:00:03]} h5 {[%emt 0:00:01]} 5. Bd3 {[%emt 0:00:03]} Qd7 {[%emt 0:00:01]} 6. Ne2 {[%emt 0:01:03] B12: Caro-Kann: Advance Variation.} Bxd3 {[%emt 0:00:09]} 7. Qxd3 {[%emt 0:00:05]} e6 {[%emt 0:00:42]} 8. Nd2 {[%emt 0:01:56]} c5 {[%emt 0:00:00]} 9. c3 {[%emt 0:00:01]} Nc6 {[%emt 0:00:35]} 10. Nf3 {[%emt 0:00:54]} Nge7 {[%emt 0:00:00]} 11. O-O {[%emt 0:00:51]} Nf5 {[%emt 0:00:02]} 12. Bg5 {[%emt 0:02:52]} c4 $146 {[%emt 0:02:24]} ({Predecessor:} 12... Be7 13. Ng3 Bxg5 14. Nxf5 Be7 15. Ne3 Qd8 16. g3 Qb6 17. dxc5 Bxc5 18. Ng2 O-O-O {0-1 Wu,D (2255)-Contreras Torres,J (2296) Titled Tuesday intern op 21st Nov Late blitz 2023 (5)}) 13. Qc2 {[%emt 0:00:00]} b5 {[%emt 0:01:08]} 14. b3 {[%emt 0:00:29]} Rc8 {[%emt 0:01:36]} 15. Rad1 {[%emt 0:00:05]} cxb3 {[%emt 0:00:20]} 16. axb3 {[%emt 0:00:24]} Be7 {[%emt 0:00:15]} 17. Ng3 {[%emt 0:00:40]} g6 {[%emt 0:00:36]} (17... Nxg3 $11 {keeps the balance.} 18. fxg3 a5) 18. Nxf5 $16 {[%emt 0:00:56]} gxf5 {[%emt 0:00:01]} 19. Qd3 {[%emt 0:00:05]} Bxg5 {[%emt 0:00:21]} 20. Nxg5 {[%emt 0:00:04]} ({But not} 20. hxg5 Ne7 $11) 20... Ne7 {[%emt 0:00:14]} (20... a5 $16 {was called for.}) 21. Ra1 $18 {[%emt 0:01:20]} Qb7 {[%emt 0:01:40]} 22. Ra5 {[%emt 0:01:10]} a6 {[%emt 0:00:00]} 23. Rfa1 {[%emt 0:00:02]} Rc6 {[%emt 0:00:00]} 24. Qe2 {[%emt 0:01:28]} Qc8 {[%emt 0:02:20]} 25. Qa2 {[%emt 0:00:34]} (25. g3 $1 $18) 25... Ng6 $16 {[%emt 0:02:49]} 26. Rxa6 {[%emt 0:00:04]} Rxa6 {[%emt 0:00:15]} 27. Qxa6 {[%emt 0:00:01]} O-O {[%emt 0:00:01]} 28. Qxc8 {[%emt 0:00:18]} ({Don't take} 28. Qxb5 Qxc3 29. Rd1 Qc2 $11) 28... Rxc8 {[%emt 0:00:01]} 29. Ra7 {[%emt 0:00:01]} Nh8 {[%emt 0:00:28]} 30. Rb7 {[%emt 0:00:24]} Rxc3 {[%emt 0:00:01]} 31. Rxb5 {[%emt 0:00:03]} Rd3 {[%emt 0:00:16]} 32. Rb8+ {[%emt 0:00:21]} Kg7 {[%emt 0:00:00]} 33. Rb7 {[%emt 0:00:01]} Kg8 {[%emt 0:00:01]} 34. Rb8+ {[%emt 0:00:17]} ({Better is} 34. Rb4 $16) 34... Kg7 $14 {[%emt 0:00:01]} 35. Rb7 {[%emt 0:00:01]} (35. f4 $14) 35... Kg8 $16 {[%emt 0:01:15]} 36. Rb4 {[%emt 0:01:35]} Rd1+ {[%emt 0:00:00]} 37. Kh2 {[%emt 0:00:01]} Rd2 {[%emt 0:00:09]} 38. Kg3 $1 {[%emt 0:00:39]} Rd3+ {[%emt 0:00:21]} 39. f3 {[%emt 0:00:08]} (39. Nf3 $1 $16) 39... Rd2 {[%emt 0:00:18]} (39... Kg7 $1 $14) 40. Kh3 {[%emt 0:00:41]} ({Don't play} 40. Rb8+ $6 Kg7 $11) (40. f4 $1 $16) 40... Rd1 $2 {[%emt 0:00:08] [#]} ({Black should try} 40... f4 $14) 41. g3 $1 $18 {[%emt 0:00:08]} Rd2 {[%emt 0:00:36]} 42. f4 {[%emt 0:00:10]} Kg7 {[%emt 0:00:11]} 43. Rb7 {[%emt 0:00:03]} Kg8 {[%emt 0:00:01]} 44. Rb8+ {[%emt 0:00:02]} Kg7 {[%emt 0:00:00]} 45. Rb7 {[%emt 0:00:00]} Kg8 $1 {[%emt 0:00:01] [#]} 46. b4 $1 {[%emt 0:00:34]} Rxd4 {[%emt 0:00:02]} 47. Kg2 {[%emt 0:00:03]} Rd2+ {[%emt 0:00:08]} 48. Kf3 {[%emt 0:00:04]} d4 {[%emt 0:00:08]} 49. b5 {[%emt 0:00:27]} Rd3+ $2 {[%emt 0:00:01]} (49... Rh2 $16 {keeps fighting.} 50. Rb8+ Kg7) 50. Kf2 $18 {[%emt 0:00:03]} Rd2+ {[%emt 0:00:01]} 51. Kf3 {[%emt 0:00:04]} Rd3+ $1 {[%emt 0:00:01]} 52. Kf2 {[%emt 0:00:06]} Rd2+ $1 {[%emt 0:00:00]} 1/2-1/2

[Event "FIDE Open World Rapid 2024"]
[Site "New York"]
[Date "2024.12.28"]
[Round "9.2"]
[White "Oro, Faustino"]
[Black "Donchenko, Alexander"]
[Result "1/2-1/2"]
[ECO "D24"]
[WhiteElo "2433"]
[BlackElo "2618"]
[Annotator "ChessBase"]
[PlyCount "102"]
[EventDate "2024.12.14"]
[EventType "swiss"]
[EventCountry "USA"]
[SourceTitle "playchess.com"]
[Source "ChessBase"]
[SourceQuality "1"]
[TimeControl "900+10"]

1. d4 {[%emt 0:00:04]} Nf6 {[%emt 0:00:02]} 2. Nf3 {[%emt 0:00:03]} d5 {[%emt 0:00:06]} 3. c4 {[%emt 0:00:03]} e6 {[%emt 0:00:02]} 4. Nc3 {[%emt 0:00:29]} dxc4 {[%emt 0:00:04]} 5. e3 {[%emt 0:00:05]} a6 {[%emt 0:00:02]} 6. a4 {[%emt 0:00:22]} Bb4 {[%emt 0:00:02]} 7. Bxc4 {[%emt 0:00:03]} b6 {[%emt 0:00:02]} 8. O-O {[%emt 0:00:06]} Bb7 {[%emt 0:00:02]} 9. Qb3 {[%emt 0:00:20]} Qe7 {[%emt 0:00:16]} 10. e4 {[%emt 0:01:47]} Nxe4 {[%emt 0:04:41]} 11. Nxe4 {[%emt 0:01:14]} Bxe4 {[%emt 0:00:01]} 12. d5 {[%emt 0:00:20]} exd5 {[%emt 0:01:32]} 13. Bxd5 {[%emt 0:00:17]} Bxd5 {[%emt 0:00:03]} 14. Qxd5 {[%emt 0:00:01]} c6 {[%emt 0:00:01]} 15. Qc4 {[%emt 0:02:18]} O-O {[%emt 0:01:36]} 16. Bg5 {[%emt 0:00:27]} Qc5 {[%emt 0:00:02]} 17. Qg4 {[%emt 0:00:06]} f5 {[%emt 0:00:17]} 18. Qh4 {[%emt 0:00:42]} Re8 {[%emt 0:03:40]} 19. Be3 {[%emt 0:01:11]} Qf8 {[%emt 0:00:00]} 20. Qc4+ {[%emt 0:01:07]} Kh8 {[%emt 0:00:00]} 21. Bxb6 {[%emt 0:00:50]} Nd7 {[%emt 0:00:00]} 22. Be3 {[%emt 0:00:16]} Bc5 {[%emt 0:00:23]} 23. Bxc5 {[%emt 0:01:39]} Qxc5 {[%emt 0:00:02]} 24. Qd3 {[%emt 0:00:19]} Nf6 {[%emt 0:01:00]} 25. Rac1 {[%emt 0:00:22]} Qd5 {[%emt 0:00:02]} 26. Qc2 {[%emt 0:00:12]} Reb8 {[%emt 0:00:37]} 27. h3 {[%emt 0:00:29]} Ne4 {[%emt 0:00:33]} 28. Rfd1 {[%emt 0:00:27]} Qe6 {[%emt 0:01:05]} 29. Nd4 {[%emt 0:00:45]} Qf6 {[%emt 0:00:02]} 30. Qc3 {[%emt 0:00:52]} c5 31. Qxc5 {[%emt 0:00:11]} Qd6 {[%emt 0:00:02]} 32. Qc6 Qxc6 {[%emt 0:00:20]} 33. Rxc6 {[%emt 0:00:18]} Rxb2 {[%emt 0:01:11]} 34. Nxf5 {[%emt 0:00:28]} Rxf2 {[%emt 0:00:06]} 35. Rxa6 {[%emt 0:02:07]} Rf8 {[%emt 0:00:07]} 36. Nh4 {[%emt 0:00:08]} Nc3 {[%emt 0:00:16]} 37. Re1 {[%emt 0:00:18]} R2f4 {[%emt 0:02:01]} 38. Nf3 {[%emt 0:00:06]} Rxa4 {[%emt 0:00:08]} 39. Rxa4 {[%emt 0:00:13]} Nxa4 {[%emt 0:00:02]} 40. Re7 {[%emt 0:00:03]} Nc3 {[%emt 0:00:12]} 41. Nd4 {[%emt 0:00:08]} Nd5 {[%emt 0:00:09]} 42. Ra7 {[%emt 0:00:01]} Nf4 {[%emt 0:00:43]} 43. Re7 {[%emt 0:00:16]} Ng6 {[%emt 0:00:18]} 44. Rc7 {[%emt 0:00:09]} Nf4 {[%emt 0:00:08]} 45. Re7 {[%emt 0:00:03]} h5 {[%emt 0:00:22]} 46. Re4 {[%emt 0:00:38]} Rf6 {[%emt 0:00:07]} 47. Kh2 {[%emt 0:00:10]} Kh7 {[%emt 0:00:03]} 48. Nf3 {[%emt 0:00:04]} Kh6 {[%emt 0:00:05]} 49. h4 {[%emt 0:00:16]} Nd3 {[%emt 0:00:11]} 50. Re8 {[%emt 0:00:14]} Kg6 {[%emt 0:00:26]} 51. Ne5+ {[%emt 0:00:10]} Nxe5 {[%emt 0:00:02]} 1/2-1/2

[Event "FIDE Open World Rapid 2024"]
[Site "New York"]
[Date "2024.12.27"]
[Round "9.3"]
[White "Nakamura, Hikaru"]
[Black "Murzin, Volodar"]
[Result "0-1"]
[ECO "C50"]
[WhiteElo "2802"]
[BlackElo "2664"]
[Annotator "TA"]
[PlyCount "120"]
[EventDate "2024.12.14"]
[EventType "swiss"]
[EventCountry "USA"]
[SourceTitle "playchess.com"]
[Source "ChessBase"]
[SourceQuality "1"]
[TimeControl "900+10"]

{[%evp 10,120,4,8,11,-8,7,8,13,10,18,19,33,21,22,23,47,18,26,27,20,22,35,35,35,34,33,33,35,35,35,35,35,-72,-81,-70,-10,-14,-20,-12,-5,-7,-5,-18,-15,-25,0,0,23,16,17,20,18,22,22,20,20,16,54,10,7,0,34,41,60,53,65,55,58,54,72,59,85,85,106,74,77,64,52,31,40,0,16,8,53,54,63,0,10,9,8,8,8,8,8,0,0,0,0,0,0,-8,-1,-2,0,-147,-88,-90,-19,-345,-73,-818,-814]} 1. e4 {[%emt 0:00:03]} e5 {[%emt 0:00:01]} 2. Nf3 {[%emt 0:00:03]} Nc6 {[%emt 0:00:02]} 3. Bc4 {[%emt 0:00:02]} Bc5 {[%emt 0:00:01]} 4. d3 {[%emt 0:00:02]} Nf6 {[%emt 0:00:02]} 5. Nc3 {[%emt 0:00:01][%cal Bb1c3,Bc3d5,Bd5e3,Be3c4][%mdl 32]} h6 {[%emt 0:00:03]} 6. Nd5 {[%emt 0:00:01]} d6 {[%emt 0:00:02]} 7. Be3 {[%emt 0:00:06]} a6 {[%emt 0:00:12]} 8. Bxc5 {[%emt 0:00:05]} dxc5 {[%emt 0:00:01]} 9. Ne3 {[%emt 0:00:01]} Qd6 {[%emt 0:01:09]} 10. O-O {[%emt 0:00:10]} O-O {[%emt 0:00:09]} 11. a4 {[%emt 0:00:02]} Be6 {[%emt 0:00:38]} 12. a5 {[%emt 0:00:15]} Rad8 {[%emt 0:00:08]} 13. h3 {[%emt 0:00:15]} Bxc4 {[%emt 0:01:16]} 14. Nxc4 {[%emt 0:00:03]} Qe6 {[%emt 0:00:02]} 15. Nfd2 {[%emt 0:00:17]} Nd4 {[%emt 0:00:31]} 16. c3 {[%emt 0:00:49]} Nc6 {[%emt 0:02:09]} 17. Qe2 {[%emt 0:00:07]} Ne7 {[%emt 0:00:23]} 18. Kh2 {[%emt 0:00:22]} Ng6 {[%emt 0:00:30]} 19. g3 {[%emt 0:00:41] Against Nf4} Qd7 {[%emt 0:00:05]} 20. Nb3 {[%emt 0:00:24]} Qb5 {[%emt 0:00:02]} 21. Qc2 {[%emt 0:00:26] [#]} (21. Ra3 $14 {stays ahead.}) 21... Nxe4 $1 $17 {[%emt 0:00:33]} 22. Rae1 {[%emt 0:00:37]} Nf6 {[%emt 0:01:56]} (22... Ng5 $15 23. f4 exf4 24. gxf4 Nh7) 23. Nxe5 $11 {[%emt 0:00:09]} Nxe5 {[%emt 0:00:10]} 24. Rxe5 {[%emt 0:00:02]} b6 {[%emt 0:01:00]} 25. axb6 {[%emt 0:06:21]} cxb6 {[%emt 0:00:03]} (25... Qxd3 $2 26. Qxd3 Rxd3 27. b7 $18 (27. Nxc5 Rd6 $18) (27. bxc7 Rc8 $18)) 26. Re3 {[%emt 0:00:01]} Nd5 {[%emt 0:00:40]} 27. Re2 {[%emt 0:00:04]} Nc7 {[%emt 0:00:42]} 28. d4 {[%emt 0:00:28]} Qc6 {[%emt 0:03:03]} 29. dxc5 {[%emt 0:01:03]} bxc5 {[%emt 0:00:02]} 30. Nd2 {[%emt 0:00:36]} Rfe8 {[%emt 0:00:36]} 31. Rfe1 {[%emt 0:00:16]} Rxe2 {[%emt 0:00:08]} 32. Rxe2 {[%emt 0:00:02]} Ne6 {[%emt 0:00:17]} 33. h4 {[%emt 0:00:09] Dodges Ng5} Qd5 {[%emt 0:01:42]} 34. Qa4 {[%emt 0:01:39]} Qb7 {[%emt 0:00:45]} 35. Qc2 {[%emt 0:00:30]} Qd5 {[%emt 0:00:43]} 36. Qe4 {[%emt 0:01:53]} Qxe4 {[%emt 0:00:01]} 37. Nxe4 $14 {[%emt 0:00:01][%mdl 4096] Endgame KRN-KRN} Rd1 {[%emt 0:00:03]} 38. Kg2 {[%emt 0:00:51]} Kf8 {[%emt 0:00:09]} 39. Nd2 {[%emt 0:00:11]} h5 {[%emt 0:01:05]} 40. Nc4 {[%emt 0:00:15]} Ke7 {[%emt 0:00:05]} 41. Ne3 {[%emt 0:00:04]} Rb1 {[%emt 0:00:13]} 42. Rd2 {[%emt 0:00:06]} a5 {[%emt 0:00:13][%cal Ba6a5,Ba5a4][%mdl 32]} 43. Nc4 {[%emt 0:01:58]} a4 {[%emt 0:00:02]} 44. f4 {[%emt 0:00:10]} g6 {[%emt 0:00:07]} 45. Ne5 {[%emt 0:00:03]} Ke8 {[%emt 0:00:13]} 46. Kf3 {[%emt 0:00:16]} a3 {[%emt 0:00:25]} 47. bxa3 {[%emt 0:00:01]} Rb3 {[%emt 0:00:01][%csl LRa3,LRc3]} 48. Ra2 {[%emt 0:00:13]} (48. Rd3 $14) 48... Rxc3+ {[%emt 0:00:02]} 49. Kf2 {[%emt 0:00:00]} c4 {[%emt 0:00:33]} 50. a4 {[%emt 0:00:01]} Nc5 {[%emt 0:00:02]} 51. a5 {[%emt 0:00:00]} f6 $1 {[%emt 0:00:10]} 52. Nf3 {[%emt 0:00:28] and a6 would now be decisive} Na6 {[%emt 0:00:09]} 53. Ke2 {[%emt 0:00:39]} Kd7 {[%emt 0:00:22]} 54. Rb2 {[%emt 0:00:05]} Ra3 {[%emt 0:00:08][%cal Oa6c5]} 55. Rb6 {[%emt 0:00:01][%csl LRa6,LRf6]} Ra2+ {[%emt 0:00:11]} 56. Kd1 {[%emt 0:00:10]} Nc5 {[%emt 0:00:08]} 57. Rb4 {[%emt 0:00:39] [#]} (57. Rxf6 $11 Nd3 58. Rxg6 Nf2+ 59. Kc1 Nd3+ 60. Kb1 Rb2+ 61. Ka1) 57... Nd3 {[%emt 0:00:08]} (57... Rxa5 $6 58. Rxc4 Kd6 59. Ke2 $11) ({Better is} 57... Ne4 $1 {[%cal Re4f2] aiming for ...Nf2+.} 58. Rxc4 Nxg3) 58. Rb5 $17 {[%emt 0:00:01]} Kd6 {[%emt 0:00:20] Black has more active pieces.} (58... Nf2+ $17 59. Kc1 Ne4) 59. Nd2 $2 {[%emt 0:00:09][%mdl 8192]} (59. Nd4 $1 $11 {and White stays safe.}) 59... Kc6 $2 {[%emt 0:00:00]} (59... Nf2+ $19 60. Kc1 c3 61. Nc4+ Kc6 62. Rb6+ Kc5) 60. Rb8 $2 {[%emt 0:00:01][%mdl 8192]} (60. Rb6+ $17 Kc5 61. Rb8) 60... Kc7 {[%emt 0:00:14]} ({Weaker is} 60... Rxa5 61. Nxc4 Ra2 62. Nd2 $11) 0-1

[Event "FIDE Open World Rapid 2024"]
[Site "New York"]
[Date "2024.12.28"]
[Round "9.3"]
[White "Shimanov, Aleksandr"]
[Black "Amartuvshin, Ganzorig"]
[Result "1-0"]
[ECO "C47"]
[WhiteElo "2593"]
[BlackElo "2392"]
[Annotator "ChessBase"]
[PlyCount "67"]
[EventDate "2024.12.14"]
[EventType "swiss"]
[EventCountry "USA"]
[SourceTitle "playchess.com"]
[Source "ChessBase"]
[SourceQuality "1"]
[TimeControl "900+10"]

1. e4 {[%emt 0:00:03]} e5 {[%emt 0:00:02]} 2. Nf3 {[%emt 0:00:01]} Nc6 {[%emt 0:00:02]} 3. Nc3 {[%emt 0:00:02]} Nf6 {[%emt 0:00:02]} 4. h3 {[%emt 0:00:02]} d5 {[%emt 0:00:23]} 5. exd5 {[%emt 0:00:01]} Nxd5 {[%emt 0:00:02]} 6. Bb5 {[%emt 0:00:02]} Nxc3 {[%emt 0:00:06]} 7. bxc3 {[%emt 0:00:01]} Bd6 {[%emt 0:00:03]} 8. O-O {[%emt 0:00:03]} O-O {[%emt 0:00:06]} 9. Re1 {[%emt 0:00:01]} Qf6 {[%emt 0:00:27]} 10. d4 {[%emt 0:00:02]} exd4 {[%emt 0:00:14]} 11. cxd4 {[%emt 0:00:01]} h6 {[%emt 0:00:49]} 12. Rb1 {[%emt 0:00:04]} Qg6 {[%emt 0:00:45]} 13. Bd3 {[%emt 0:00:17]} Qf6 {[%emt 0:00:21]} 14. Bb2 {[%emt 0:05:32]} Qd8 {[%emt 0:00:30]} 15. a3 {[%emt 0:01:47]} Ne7 {[%emt 0:00:22]} 16. c4 {[%emt 0:00:13]} c6 {[%emt 0:00:05]} 17. Qc2 {[%emt 0:00:17]} Ng6 {[%emt 0:00:50]} 18. Rbd1 {[%emt 0:00:17]} Nf4 {[%emt 0:00:10]} 19. Bf1 {[%emt 0:00:08]} Be6 {[%emt 0:02:19]} 20. Re3 {[%emt 0:01:32]} Qd7 {[%emt 0:01:01]} 21. Ne5 {[%emt 0:02:45]} Bxe5 {[%emt 0:00:07]} 22. dxe5 {[%emt 0:00:05]} Qc8 {[%emt 0:00:28]} 23. Qe4 {[%emt 0:00:22]} Ng6 {[%emt 0:00:05]} 24. Rd6 {[%emt 0:00:24]} Bf5 {[%emt 0:00:09]} 25. Qd4 {[%emt 0:00:05]} c5 {[%emt 0:00:04]} 26. Qc3 {[%emt 0:00:03]} Be6 {[%emt 0:01:06]} 27. Bd3 {[%emt 0:00:43]} Rd8 {[%emt 0:00:39]} 28. Rg3 {[%emt 0:00:57]} Ne7 {[%emt 0:03:09]} 29. f4 {[%emt 0:00:10]} f5 {[%emt 0:01:44]} 30. exf6 {[%emt 0:00:18]} Rxd6 {[%emt 0:00:02]} 31. Rxg7+ {[%emt 0:00:08]} Kh8 {[%emt 0:00:06]} 32. Rh7+ {[%emt 0:00:10]} Kg8 {[%emt 0:00:06]} 33. f7+ {[%emt 0:00:02]} Bxf7 {[%emt 0:00:01]} 34. Qg7# {[%emt 0:00:02]} 1-0